[Event "Late-Titled-Tuesday-Blitz-June-25-2024"]
[Site "Chess.com"]
[Date "2024.06.25"]
[Round "3"]
[White "jaramsdal"]
[Black "Puzzlebot_1294"]
[Result "0-1"]
[WhiteElo "2436"]
[BlackElo "2634"]
[TimeControl "180+1"]
[EndTime "14:25:31 PDT"]
[Termination "Puzzlebot_1294 won on time"]

1. e4 {[%clk 0:02:56.5]} 1... e5 {[%clk 0:02:59.1]} 2. Nf3 {[%clk 0:02:55.9]}
2... Nc6 {[%clk 0:02:59.1]} 3. d4 {[%clk 0:02:56.3]} 3... exd4 {[%clk
0:02:58.9]} 4. c3 {[%clk 0:02:56.8]} 4... dxc3 {[%clk 0:02:58.6]} 5. Bc4 {[%clk
0:02:57.4]} 5... d6 {[%clk 0:02:48.8]} 6. O-O {[%clk 0:02:53.4]} 6... Nf6 {[%clk
0:02:47]} 7. Nxc3 {[%clk 0:02:50.6]} 7... Be7 {[%clk 0:02:45.8]} 8. Re1 {[%clk
0:02:33]} 8... O-O {[%clk 0:02:40.6]} 9. Bf4 {[%clk 0:02:30.9]} 9... Bg4 {[%clk
0:02:34.5]} 10. h3 {[%clk 0:02:23.7]} 10... Bh5 {[%clk 0:02:33.9]} 11. g4 {[%clk
0:02:21.1]} 11... Bg6 {[%clk 0:02:33.3]} 12. Qe2 {[%clk 0:01:55.8]} 12... Nd7
{[%clk 0:02:14]} 13. Rad1 {[%clk 0:00:51.5]} 13... Bf6 {[%clk 0:02:08.2]} 14.
Nd5 {[%clk 0:00:50.6]} 14... Re8 {[%clk 0:02:07.9]} 15. Qd2 {[%clk 0:00:41.2]}
15... Bxe4 {[%clk 0:01:58.5]} 16. Rxe4 {[%clk 0:00:21.3]} 16... Rxe4 {[%clk
0:01:54.8]} 17. Nxc7 {[%clk 0:00:20.2]} 17... Rxc4 {[%clk 0:01:50.5]} 18. Qxd6
{[%clk 0:00:20]} 18... Rc8 {[%clk 0:01:41.9]} 19. Bg3 {[%clk 0:00:18.2]} 19...
Nb6 {[%clk 0:01:39.3]} 20. Qxd8+ {[%clk 0:00:12.4]} 20... Rxd8 {[%clk
0:01:40.2]} 21. Rxd8+ {[%clk 0:00:05.2]} 21... Bxd8 {[%clk 0:01:41.1]} 0-1

[Event "Late-Titled-Tuesday-Blitz-June-25-2024"]
[Site "Chess.com"]
[Date "2024.06.25"]
[Round "3"]
[White "LoonsDeKoeben"]
[Black "rhungaski"]
[Result "0-1"]
[WhiteElo "2429"]
[BlackElo "2623"]
[TimeControl "180+1"]
[EndTime "14:25:41 PDT"]
[Termination "rhungaski won by resignation"]

1. e4 {[%clk 0:03:00.9]} 1... d6 {[%clk 0:02:59]} 2. d4 {[%clk 0:02:57.5]} 2...
Nf6 {[%clk 0:02:58.9]} 3. Nc3 {[%clk 0:02:57.4]} 3... Nbd7 {[%clk 0:02:56.6]} 4.
Nf3 {[%clk 0:02:51.9]} 4... e5 {[%clk 0:02:56.6]} 5. Rg1 {[%clk 0:02:51.6]} 5...
c6 {[%clk 0:02:52.5]} 6. g4 {[%clk 0:02:50.6]} 6... g6 {[%clk 0:02:49.6]} 7. Be3
{[%clk 0:02:46.8]} 7... Qa5 {[%clk 0:02:43.1]} 8. Qd2 {[%clk 0:02:14.6]} 8...
Bg7 {[%clk 0:02:32.1]} 9. g5 {[%clk 0:02:11.3]} 9... Nh5 {[%clk 0:02:31.6]} 10.
Ne2 {[%clk 0:02:06]} 10... Qxd2+ {[%clk 0:02:27.8]} 11. Nxd2 {[%clk 0:02:06.3]}
11... O-O {[%clk 0:02:05.3]} 12. c3 {[%clk 0:01:57]} 12... Re8 {[%clk
0:01:54.9]} 13. O-O-O {[%clk 0:01:32.7]} 13... b5 {[%clk 0:01:49.1]} 14. f4
{[%clk 0:01:19.8]} 14... Nb6 {[%clk 0:01:38.7]} 15. Kc2 {[%clk 0:00:38.9]} 15...
Bb7 {[%clk 0:01:24.2]} 16. Kd3 {[%clk 0:00:32.1]} 16... exd4 {[%clk 0:01:20]}
17. cxd4 {[%clk 0:00:30.5]} 17... Rad8 {[%clk 0:01:17.9]} 18. Ng3 {[%clk
0:00:30]} 18... Nxg3 {[%clk 0:01:15.9]} 19. hxg3 {[%clk 0:00:30.9]} 19... c5
{[%clk 0:01:16.5]} 20. Nf3 {[%clk 0:00:26.2]} 20... Bxe4+ {[%clk 0:01:14.9]} 21.
Ke2 {[%clk 0:00:26.3]} 21... Nd5 {[%clk 0:01:07.2]} 0-1

[Event "Late-Titled-Tuesday-Blitz-June-25-2024"]
[Site "Chess.com"]
[Date "2024.06.25"]
[Round "3"]
[White "talaicito"]
[Black "DanylaBagrov"]
[Result "0-1"]
[WhiteElo "2361"]
[BlackElo "2593"]
[TimeControl "180+1"]
[EndTime "14:25:42 PDT"]
[Termination "DanylaBagrov won by resignation"]

1. d4 {[%clk 0:03:00.9]} 1... d6 {[%clk 0:02:54]} 2. e4 {[%clk 0:02:59.9]} 2...
Nf6 {[%clk 0:02:54.6]} 3. Nc3 {[%clk 0:02:59.6]} 3... e5 {[%clk 0:02:55.1]} 4.
f4 {[%clk 0:02:59.9]} 4... exd4 {[%clk 0:02:55.2]} 5. Qxd4 {[%clk 0:02:59.5]}
5... Nc6 {[%clk 0:02:55.9]} 6. Qd2 {[%clk 0:02:47.2]} 6... d5 {[%clk 0:02:32.9]}
7. exd5 {[%clk 0:02:41.7]} 7... Nb4 {[%clk 0:02:31.4]} 8. Bc4 {[%clk 0:02:41.9]}
8... Bf5 {[%clk 0:02:26.8]} 9. Bb3 {[%clk 0:02:36.9]} 9... Bc5 {[%clk
0:02:17.1]} 10. a3 {[%clk 0:02:34.9]} 10... Na6 {[%clk 0:02:04.8]} 11. Qe2+
{[%clk 0:02:21.5]} 11... Be7 {[%clk 0:01:58.2]} 12. Be3 {[%clk 0:02:19]} 12...
O-O {[%clk 0:01:56.1]} 13. O-O-O {[%clk 0:02:18]} 13... Nc5 {[%clk 0:01:54.5]}
14. Ba2 {[%clk 0:02:11.6]} 14... Nce4 {[%clk 0:01:36.8]} 15. Nxe4 {[%clk
0:02:10.6]} 15... Bxe4 {[%clk 0:01:31.6]} 16. Nf3 {[%clk 0:02:05.3]} 16... Re8
{[%clk 0:01:29.5]} 17. Rhg1 {[%clk 0:01:51.9]} 17... Ng4 {[%clk 0:01:22.8]} 18.
Ne5 {[%clk 0:01:47.3]} 18... Nxe3 {[%clk 0:01:00.3]} 19. Qxe3 {[%clk 0:01:48.2]}
19... Bg6 {[%clk 0:00:55.6]} 20. f5 {[%clk 0:01:34.1]} 20... Bg5 {[%clk
0:00:52.3]} 21. fxg6 {[%clk 0:00:55.2]} 21... Bxe3+ {[%clk 0:00:51.3]} 22. Kb1
{[%clk 0:00:56.1]} 22... Rxe5 {[%clk 0:00:48.4]} 23. gxf7+ {[%clk 0:00:54.4]}
23... Kf8 {[%clk 0:00:46.1]} 24. Rge1 {[%clk 0:00:48.7]} 24... Qd6 {[%clk
0:00:45.3]} 0-1

[Event "Late-Titled-Tuesday-Blitz-June-25-2024"]
[Site "Chess.com"]
[Date "2024.06.25"]
[Round "3"]
[White "DryCounty"]
[Black "OppieZippy"]
[Result "1-0"]
[WhiteElo "2654"]
[BlackElo "2348"]
[TimeControl "180+1"]
[EndTime "14:25:55 PDT"]
[Termination "DryCounty won by resignation"]

1. e4 {[%clk 0:03:00.9]} 1... Nf6 {[%clk 0:02:59.3]} 2. e5 {[%clk 0:03:00.2]}
2... Nd5 {[%clk 0:02:59.9]} 3. d4 {[%clk 0:03:00.2]} 3... d6 {[%clk 0:03:00.1]}
4. c4 {[%clk 0:03:00.4]} 4... Nb6 {[%clk 0:03:00.1]} 5. exd6 {[%clk 0:03:00.9]}
5... exd6 {[%clk 0:03:00.2]} 6. Nc3 {[%clk 0:03:00]} 6... Be7 {[%clk 0:03:00.6]}
7. Bd3 {[%clk 0:02:59.1]} 7... O-O {[%clk 0:03:00.2]} 8. Be3 {[%clk 0:02:57.6]}
8... Bf6 {[%clk 0:02:59]} 9. Nf3 {[%clk 0:02:57.4]} 9... Bg4 {[%clk 0:02:57.7]}
10. O-O {[%clk 0:02:56.8]} 10... Re8 {[%clk 0:02:53.3]} 11. h3 {[%clk
0:02:50.8]} 11... Bh5 {[%clk 0:02:53.2]} 12. b3 {[%clk 0:02:48.5]} 12... Nc6
{[%clk 0:02:50.4]} 13. g4 {[%clk 0:02:48.2]} 13... Bg6 {[%clk 0:02:48.7]} 14.
Bxg6 {[%clk 0:02:48]} 14... hxg6 {[%clk 0:02:49.6]} 15. Qd3 {[%clk 0:02:43.9]}
15... d5 {[%clk 0:02:43.8]} 16. c5 {[%clk 0:02:42.9]} 16... Nc8 {[%clk
0:02:37.2]} 17. Rae1 {[%clk 0:02:34.2]} 17... Qd7 {[%clk 0:02:31.3]} 18. Bf4
{[%clk 0:02:30.1]} 18... Rxe1 {[%clk 0:02:15]} 19. Rxe1 {[%clk 0:02:31]} 19...
Bd8 {[%clk 0:02:08.9]} 20. Qb5 {[%clk 0:02:04.5]} 20... Rb8 {[%clk 0:02:05.7]}
21. Ne5 {[%clk 0:01:52.4]} 21... Nxe5 {[%clk 0:02:01.5]} 22. Qxd7 {[%clk
0:01:48.3]} 22... Nxd7 {[%clk 0:01:58.1]} 23. Re8+ {[%clk 0:01:47.8]} 23... Kh7
{[%clk 0:01:35]} 24. Rxd8 {[%clk 0:01:48.7]} 24... Nf6 {[%clk 0:01:24.7]} 25.
Bxc7 {[%clk 0:01:46.6]} 25... Ra8 {[%clk 0:01:24.3]} 26. Be5 {[%clk 0:01:46.2]}
26... Nb6 {[%clk 0:01:23.4]} 27. Rxa8 {[%clk 0:01:45.8]} 27... Nxa8 {[%clk
0:01:24.3]} 28. Bxf6 {[%clk 0:01:46]} 28... gxf6 {[%clk 0:01:25.2]} 29. Nxd5
{[%clk 0:01:46.5]} 29... Kg7 {[%clk 0:01:25.7]} 30. f4 {[%clk 0:01:45.4]} 30...
f5 {[%clk 0:01:25.5]} 31. g5 {[%clk 0:01:45.2]} 31... Kf8 {[%clk 0:01:24.8]} 32.
Kf2 {[%clk 0:01:44.1]} 32... Ke8 {[%clk 0:01:25.4]} 33. Ke3 {[%clk 0:01:43.5]}
33... Kd7 {[%clk 0:01:26]} 34. Kd3 {[%clk 0:01:43.2]} 34... Kc6 {[%clk
0:01:25.5]} 35. Nf6 {[%clk 0:01:28.6]} 35... Nc7 {[%clk 0:01:18.5]} 36. Kc4
{[%clk 0:01:25.5]} 36... b5+ {[%clk 0:01:17.6]} 37. cxb6 {[%clk 0:01:19.7]}
37... axb6 {[%clk 0:01:18.5]} 38. d5+ {[%clk 0:01:12.4]} 38... Kd6 {[%clk
0:01:18.1]} 39. a4 {[%clk 0:01:12.9]} 39... b5+ {[%clk 0:01:09.1]} 40. axb5
{[%clk 0:01:10.9]} 40... Na8 {[%clk 0:01:09.4]} 41. Kb4 {[%clk 0:01:04.3]} 41...
Nb6 {[%clk 0:01:07.8]} 42. Ka5 {[%clk 0:01:04.3]} 42... Kc5 {[%clk 0:01:04.8]}
43. b4+ {[%clk 0:01:01.2]} 1-0

[Event "Late-Titled-Tuesday-Blitz-June-25-2024"]
[Site "Chess.com"]
[Date "2024.06.25"]
[Round "3"]
[White "burbur555"]
[Black "BilodeauA"]
[Result "0-1"]
[WhiteElo "2700"]
[BlackElo "2999"]
[TimeControl "180+1"]
[EndTime "14:25:57 PDT"]
[Termination "BilodeauA won by resignation"]

1. d4 {[%clk 0:03:00.9]} 1... d5 {[%clk 0:02:57.7]} 2. Nf3 {[%clk 0:02:59.4]}
2... Nf6 {[%clk 0:02:57.6]} 3. c4 {[%clk 0:02:58.9]} 3... dxc4 {[%clk
0:02:58.4]} 4. e3 {[%clk 0:02:57.9]} 4... Bg4 {[%clk 0:02:56.4]} 5. Bxc4 {[%clk
0:02:56.2]} 5... e6 {[%clk 0:02:53.9]} 6. Nbd2 {[%clk 0:02:54.2]} 6... a6 {[%clk
0:02:51.7]} 7. Qb3 {[%clk 0:02:42.1]} 7... b5 {[%clk 0:02:49.5]} 8. Be2 {[%clk
0:02:41.8]} 8... c5 {[%clk 0:02:37.5]} 9. a4 {[%clk 0:02:41.2]} 9... c4 {[%clk
0:02:32.7]} 10. Qc2 {[%clk 0:02:40.6]} 10... Nc6 {[%clk 0:02:32.9]} 11. O-O
{[%clk 0:02:13.6]} 11... Nb4 {[%clk 0:02:30.9]} 12. Qb1 {[%clk 0:02:10.4]} 12...
Be7 {[%clk 0:02:31]} 13. Re1 {[%clk 0:01:46.8]} 13... O-O {[%clk 0:02:11.7]} 14.
Ne5 {[%clk 0:01:26]} 14... Bf5 {[%clk 0:01:44.3]} 15. e4 {[%clk 0:01:24.7]}
15... Nxe4 {[%clk 0:01:44.8]} 16. Nxe4 {[%clk 0:01:06.7]} 16... Qxd4 {[%clk
0:01:44.7]} 17. Bf3 {[%clk 0:00:35.5]} 17... Qxe5 {[%clk 0:01:35.4]} 18. Bd2
{[%clk 0:00:35.7]} 18... Rad8 {[%clk 0:01:13.3]} 19. Bc3 {[%clk 0:00:29.7]}
19... Qf4 {[%clk 0:01:13.4]} 20. axb5 {[%clk 0:00:26.4]} 20... axb5 {[%clk
0:01:14.1]} 21. Qc1 {[%clk 0:00:11.6]} 21... Qxc1 {[%clk 0:01:09.8]} 22. Rexc1
{[%clk 0:00:12.2]} 22... Nd3 {[%clk 0:01:10.2]} 23. Rd1 {[%clk 0:00:10.7]} 23...
b4 {[%clk 0:01:09.9]} 0-1

[Event "Late-Titled-Tuesday-Blitz-June-25-2024"]
[Site "Chess.com"]
[Date "2024.06.25"]
[Round "3"]
[White "GoValya"]
[Black "ShimogaTactician"]
[Result "0-1"]
[WhiteElo "2211"]
[BlackElo "2533"]
[TimeControl "180+1"]
[EndTime "14:26:00 PDT"]
[Termination "ShimogaTactician won by resignation"]

1. Nf3 {[%clk 0:03:00.9]} 1... Nf6 {[%clk 0:02:54.4]} 2. d4 {[%clk 0:03:00.2]}
2... e6 {[%clk 0:02:54.1]} 3. g3 {[%clk 0:03:00.5]} 3... b5 {[%clk 0:02:53.4]}
4. Bg2 {[%clk 0:03:00.7]} 4... d5 {[%clk 0:02:52.2]} 5. O-O {[%clk 0:03:00.4]}
5... Nbd7 {[%clk 0:02:52.7]} 6. a4 {[%clk 0:03:00.4]} 6... b4 {[%clk 0:02:53.3]}
7. c4 {[%clk 0:03:00.6]} 7... bxc3 {[%clk 0:02:53.5]} 8. Nxc3 {[%clk 0:03:00.2]}
8... Bb7 {[%clk 0:02:53.4]} 9. Bf4 {[%clk 0:02:57.7]} 9... Bd6 {[%clk
0:02:47.5]} 10. Bxd6 {[%clk 0:02:54.1]} 10... cxd6 {[%clk 0:02:48.4]} 11. Nb5
{[%clk 0:02:54.4]} 11... Qb6 {[%clk 0:02:47.3]} 12. Rc1 {[%clk 0:02:48.3]} 12...
Ke7 {[%clk 0:02:46.2]} 13. e3 {[%clk 0:02:25.4]} 13... a6 {[%clk 0:02:31.6]} 14.
Nc3 {[%clk 0:02:21.4]} 14... Rhc8 {[%clk 0:02:22.5]} 15. Qd2 {[%clk 0:02:14.6]}
15... Rab8 {[%clk 0:02:19.8]} 16. Ng5 {[%clk 0:02:07.4]} 16... h6 {[%clk
0:02:17.6]} 17. Nh3 {[%clk 0:02:07.5]} 17... Bc6 {[%clk 0:02:12]} 18. f4 {[%clk
0:02:04.9]} 18... Qxb2 {[%clk 0:01:57.6]} 19. Rc2 {[%clk 0:02:04.9]} 19... Qb3
{[%clk 0:01:57.4]} 20. Rb1 {[%clk 0:01:54.9]} 20... Qa3 {[%clk 0:01:52.1]} 21.
Rxb8 {[%clk 0:01:46.3]} 21... Rxb8 {[%clk 0:01:53]} 22. Ra2 {[%clk 0:01:46.3]}
22... Qb4 {[%clk 0:01:48]} 23. Nf2 {[%clk 0:01:42.6]} 23... Nb6 {[%clk
0:01:42.6]} 24. Nd3 {[%clk 0:01:34.7]} 24... Qc4 {[%clk 0:01:39.7]} 25. Rc2
{[%clk 0:01:23.8]} 25... Qb3 {[%clk 0:01:33.5]} 26. f5 {[%clk 0:01:14.3]} 26...
Nc4 {[%clk 0:01:30.9]} 27. Qf2 {[%clk 0:01:14.3]} 27... Bxa4 {[%clk 0:01:28.5]}
28. Nxa4 {[%clk 0:01:06]} 28... Qxd3 {[%clk 0:01:28.4]} 29. Bf1 {[%clk
0:00:56.7]} 29... Rb1 {[%clk 0:01:28]} 30. Nb2 {[%clk 0:00:15.6]} 30... Qxf1+
{[%clk 0:01:23.6]} 31. Qxf1 {[%clk 0:00:11.7]} 31... Rxf1+ {[%clk 0:01:24.5]}
32. Kxf1 {[%clk 0:00:11.6]} 32... Nxe3+ {[%clk 0:01:25.1]} 33. Ke2 {[%clk
0:00:12.1]} 33... Nxc2 {[%clk 0:01:26]} 34. Kd2 {[%clk 0:00:12.5]} 34... Nxd4
{[%clk 0:01:25.9]} 35. Kd3 {[%clk 0:00:12.8]} 35... Nxf5 {[%clk 0:01:23.3]} 0-1

[Event "Late-Titled-Tuesday-Blitz-June-25-2024"]
[Site "Chess.com"]
[Date "2024.06.25"]
[Round "3"]
[White "LewAnatol"]
[Black "JackRodgers"]
[Result "0-1"]
[WhiteElo "2281"]
[BlackElo "2526"]
[TimeControl "180+1"]
[EndTime "14:26:04 PDT"]
[Termination "JackRodgers won on time"]

1. e4 {[%clk 0:02:57.4]} 1... c5 {[%clk 0:02:59.6]} 2. Nf3 {[%clk 0:02:56.8]}
2... g6 {[%clk 0:02:59.8]} 3. c4 {[%clk 0:02:53.8]} 3... Bg7 {[%clk 0:02:59.7]}
4. d4 {[%clk 0:02:53.4]} 4... cxd4 {[%clk 0:03:00.6]} 5. Nxd4 {[%clk 0:02:53.7]}
5... Nc6 {[%clk 0:03:01.2]} 6. Be3 {[%clk 0:02:52.2]} 6... Nf6 {[%clk
0:03:01.1]} 7. Nc3 {[%clk 0:02:50.7]} 7... Ng4 {[%clk 0:03:01.5]} 8. Qxg4 {[%clk
0:02:49.9]} 8... Nxd4 {[%clk 0:03:01.1]} 9. Qd1 {[%clk 0:02:50.1]} 9... e5
{[%clk 0:02:58.9]} 10. Bd3 {[%clk 0:02:48.6]} 10... d6 {[%clk 0:02:59]} 11. O-O
{[%clk 0:02:47.5]} 11... Be6 {[%clk 0:02:59.2]} 12. Rc1 {[%clk 0:02:40]} 12...
O-O {[%clk 0:02:58.4]} 13. b3 {[%clk 0:02:38.8]} 13... a6 {[%clk 0:02:58.1]} 14.
Ne2 {[%clk 0:02:34.5]} 14... b5 {[%clk 0:02:53.7]} 15. Qd2 {[%clk 0:02:26.3]}
15... bxc4 {[%clk 0:02:48.3]} 16. Bxc4 {[%clk 0:02:24.6]} 16... d5 {[%clk
0:02:27.4]} 17. exd5 {[%clk 0:01:52.8]} 17... Bxd5 {[%clk 0:02:28.3]} 18. Bxd4
{[%clk 0:01:24.9]} 18... exd4 {[%clk 0:02:29.2]} 19. Rfd1 {[%clk 0:01:23.1]}
19... Bb7 {[%clk 0:02:10.4]} 20. Nxd4 {[%clk 0:01:19]} 20... Qh4 {[%clk
0:02:04.2]} 21. Qb4 {[%clk 0:00:16]} 21... Bxd4 {[%clk 0:01:32.9]} 22. Rxd4
{[%clk 0:00:15.1]} 22... Qg5 {[%clk 0:01:25.4]} 23. Qxb7 {[%clk 0:00:01.5]}
23... Qxc1+ {[%clk 0:01:25]} 24. Bf1 {[%clk 0:00:02.2]} 24... Rad8 {[%clk
0:01:23.1]} 25. Rxd8 {[%clk 0:00:01]} 25... Rxd8 {[%clk 0:01:24]} 26. Qxa6
{[%clk 0:00:01.1]} 26... Qb2 {[%clk 0:01:18.1]} 0-1

[Event "Late-Titled-Tuesday-Blitz-June-25-2024"]
[Site "Chess.com"]
[Date "2024.06.25"]
[Round "3"]
[White "Defenstrator"]
[Black "Navyblue1"]
[Result "1-0"]
[WhiteElo "2426"]
[BlackElo "2169"]
[TimeControl "180+1"]
[EndTime "14:26:08 PDT"]
[Termination "Defenstrator won by resignation"]

1. e4 {[%clk 0:03:00.1]} 1... c5 {[%clk 0:02:59.3]} 2. Nf3 {[%clk 0:03:00.2]}
2... d6 {[%clk 0:02:57.1]} 3. Bc4 {[%clk 0:02:59.8]} 3... Nf6 {[%clk 0:02:55.1]}
4. d4 {[%clk 0:02:58.8]} 4... cxd4 {[%clk 0:02:50.1]} 5. Nxd4 {[%clk 0:02:59.2]}
5... a6 {[%clk 0:02:42.5]} 6. Nc3 {[%clk 0:02:53.9]} 6... b5 {[%clk 0:02:32.4]}
7. Bd5 {[%clk 0:02:50.3]} 7... Nxd5 {[%clk 0:02:30.7]} 8. exd5 {[%clk
0:02:50.3]} 8... g6 {[%clk 0:02:26.7]} 9. O-O {[%clk 0:02:47.5]} 9... Bg7 {[%clk
0:02:26.7]} 10. Re1 {[%clk 0:02:46.6]} 10... O-O {[%clk 0:02:26.4]} 11. Bg5
{[%clk 0:02:46.4]} 11... Ra7 {[%clk 0:02:21.6]} 12. a4 {[%clk 0:02:43.6]} 12...
b4 {[%clk 0:02:14.5]} 13. Na2 {[%clk 0:02:41.4]} 13... h6 {[%clk 0:01:44.1]} 14.
Bh4 {[%clk 0:02:38.1]} 14... g5 {[%clk 0:01:40.5]} 15. Bg3 {[%clk 0:02:37.5]}
15... Qb6 {[%clk 0:01:38.4]} 16. c3 {[%clk 0:02:31.7]} 16... bxc3 {[%clk
0:01:20.7]} 17. bxc3 {[%clk 0:02:31.8]} 17... Qc5 {[%clk 0:01:16.1]} 18. Qd3
{[%clk 0:02:23.5]} 18... Rc7 {[%clk 0:01:11.3]} 19. Nb4 {[%clk 0:02:13.5]} 19...
a5 {[%clk 0:01:04.1]} 20. Nbc6 {[%clk 0:02:10]} 20... Nxc6 {[%clk 0:00:56.1]}
21. Nxc6 {[%clk 0:02:09.5]} 21... Re8 {[%clk 0:00:44.6]} 22. Rac1 {[%clk
0:01:48.3]} 22... Bb7 {[%clk 0:00:27.3]} 23. Qb5 {[%clk 0:01:35.9]} 23... Qxb5
{[%clk 0:00:11.6]} 24. axb5 {[%clk 0:01:36]} 24... Rd7 {[%clk 0:00:09.5]} 25. c4
{[%clk 0:01:28.3]} 25... e5 {[%clk 0:00:09.2]} 26. Nxa5 {[%clk 0:01:26.3]} 26...
f5 {[%clk 0:00:08.3]} 27. f3 {[%clk 0:01:22.7]} 27... Bf6 {[%clk 0:00:07.4]} 28.
Nc6 {[%clk 0:01:18.2]} 28... Bd8 {[%clk 0:00:05]} 29. Bf2 {[%clk 0:01:17.8]}
29... Ba5 {[%clk 0:00:03.8]} 30. Nxa5 {[%clk 0:01:17.5]} 1-0

[Event "Late-Titled-Tuesday-Blitz-June-25-2024"]
[Site "Chess.com"]
[Date "2024.06.25"]
[Round "3"]
[White "JuliaEfremova"]
[Black "Bilan_Danila"]
[Result "0-1"]
[WhiteElo "2313"]
[BlackElo "2624"]
[TimeControl "180+1"]
[EndTime "14:26:12 PDT"]
[Termination "Bilan_Danila won by resignation"]

1. e4 {[%clk 0:02:57.9]} 1... c6 {[%clk 0:03:00]} 2. d4 {[%clk 0:02:56.7]} 2...
d5 {[%clk 0:03:00.9]} 3. exd5 {[%clk 0:02:55]} 3... cxd5 {[%clk 0:03:01.8]} 4.
Bd3 {[%clk 0:02:54.8]} 4... Nc6 {[%clk 0:03:01.4]} 5. c3 {[%clk 0:02:52.8]} 5...
Qc7 {[%clk 0:03:00.9]} 6. h3 {[%clk 0:02:49]} 6... Nf6 {[%clk 0:02:57]} 7. Nf3
{[%clk 0:02:47]} 7... g6 {[%clk 0:02:52.6]} 8. O-O {[%clk 0:02:45.1]} 8... Bf5
{[%clk 0:02:52]} 9. Be2 {[%clk 0:02:44.4]} 9... e6 {[%clk 0:02:51.6]} 10. Be3
{[%clk 0:02:31.3]} 10... Bd6 {[%clk 0:02:48.5]} 11. a4 {[%clk 0:02:26.9]} 11...
Ne4 {[%clk 0:02:39.4]} 12. g4 {[%clk 0:02:22.7]} 12... O-O-O {[%clk 0:02:20.3]}
13. Na3 {[%clk 0:02:19.2]} 13... a6 {[%clk 0:02:16.6]} 14. gxf5 {[%clk 0:02:01]}
14... gxf5 {[%clk 0:02:17.5]} 15. Nd2 {[%clk 0:01:38.9]} 15... Rhg8+ {[%clk
0:02:14.5]} 16. Kh1 {[%clk 0:01:38.1]} 16... f4 {[%clk 0:02:07.9]} 17. Nxe4
{[%clk 0:01:36.6]} 17... dxe4 {[%clk 0:02:08.8]} 18. Nc4 {[%clk 0:01:08.5]}
18... fxe3 {[%clk 0:02:06.7]} 19. Nxe3 {[%clk 0:01:04.4]} 19... f5 {[%clk
0:01:58.9]} 20. b4 {[%clk 0:00:58.5]} 20... Bf4 {[%clk 0:01:55.9]} 21. b5 {[%clk
0:00:55.5]} 21... Qg7 {[%clk 0:01:48.7]} 22. Rg1 {[%clk 0:00:41.2]} 22... Qh6
{[%clk 0:01:46.4]} 23. Bf1 {[%clk 0:00:32.3]} 23... Rxg1+ {[%clk 0:01:35.5]} 24.
Kxg1 {[%clk 0:00:31.8]} 24... Rg8+ {[%clk 0:01:35.8]} 25. Bg2 {[%clk 0:00:25]}
25... Qxh3 {[%clk 0:01:21.6]} 26. bxc6 {[%clk 0:00:19.8]} 26... Bxe3 {[%clk
0:01:15.9]} 27. cxb7+ {[%clk 0:00:19.9]} 27... Kb8 {[%clk 0:01:15.3]} 28. Qf1
{[%clk 0:00:19.3]} 28... Bf4 {[%clk 0:01:03.9]} 29. f3 {[%clk 0:00:19.5]} 29...
Be3+ {[%clk 0:01:02.4]} 0-1

[Event "Late-Titled-Tuesday-Blitz-June-25-2024"]
[Site "Chess.com"]
[Date "2024.06.25"]
[Round "3"]
[White "MikeSailer"]
[Black "albayo"]
[Result "0-1"]
[WhiteElo "2034"]
[BlackElo "2402"]
[TimeControl "180+1"]
[EndTime "14:26:18 PDT"]
[Termination "albayo won on time"]

1. d4 {[%clk 0:03:00.3]} 1... Nf6 {[%clk 0:02:58.8]} 2. Nf3 {[%clk 0:03:00.5]}
2... g6 {[%clk 0:02:57.8]} 3. Bf4 {[%clk 0:03:01]} 3... Bg7 {[%clk 0:02:57.7]}
4. e3 {[%clk 0:03:01.7]} 4... O-O {[%clk 0:02:57]} 5. Be2 {[%clk 0:03:02.3]}
5... d6 {[%clk 0:02:56.9]} 6. h3 {[%clk 0:03:02.7]} 6... Nbd7 {[%clk 0:02:57]}
7. O-O {[%clk 0:03:03.2]} 7... a6 {[%clk 0:02:52.8]} 8. c4 {[%clk 0:03:03.4]}
8... b6 {[%clk 0:02:52]} 9. Nc3 {[%clk 0:03:02.5]} 9... Bb7 {[%clk 0:02:52.6]}
10. a4 {[%clk 0:03:02.8]} 10... c5 {[%clk 0:02:49.4]} 11. a5 {[%clk 0:03:01.5]}
11... bxa5 {[%clk 0:02:46.7]} 12. d5 {[%clk 0:02:57.2]} 12... Rb8 {[%clk
0:02:43]} 13. Qa4 {[%clk 0:02:51.7]} 13... Bc8 {[%clk 0:02:41]} 14. Ra2 {[%clk
0:02:43.7]} 14... Rb4 {[%clk 0:02:40]} 15. Qc2 {[%clk 0:02:38.4]} 15... Nb6
{[%clk 0:02:33.4]} 16. Nd2 {[%clk 0:02:25.1]} 16... e6 {[%clk 0:02:12.5]} 17.
dxe6 {[%clk 0:02:16.1]} 17... Bxe6 {[%clk 0:02:12.7]} 18. b3 {[%clk 0:01:59.6]}
18... Nc8 {[%clk 0:01:40]} 19. Rfa1 {[%clk 0:01:56.5]} 19... d5 {[%clk
0:01:37.3]} 20. Rxa5 {[%clk 0:01:44.9]} 20... d4 {[%clk 0:01:36.9]} 21. exd4
{[%clk 0:01:11.5]} 21... cxd4 {[%clk 0:01:36.2]} 22. Nd5 {[%clk 0:00:51.4]}
22... Bxd5 {[%clk 0:01:19.7]} 23. cxd5 {[%clk 0:00:47.8]} 23... Nxd5 {[%clk
0:01:20.6]} 24. Rxd5 {[%clk 0:00:28.3]} 24... Qxd5 {[%clk 0:01:18.9]} 25. Bc4
{[%clk 0:00:18.4]} 25... d3 {[%clk 0:01:12.3]} 26. Bxd5 {[%clk 0:00:13.2]} 26...
dxc2 {[%clk 0:01:11.9]} 27. Bd6 {[%clk 0:00:08.7]} 27... Bxa1 {[%clk 0:01:09.8]}
28. Bxb4 {[%clk 0:00:06.9]} 28... c1=Q+ {[%clk 0:01:10.1]} 0-1